bitfinex-derivatives/quotes_SOLF0:USTF0_20250929
["timestamp","ask_amount","ask_price","bid_price","bid_amount"]
[1759189201222,7.82,212.93,212.9,7.27]
[1759189201424,3.3769367,212.92,212.9,7.27]
[1759189201618,7.82,212.95,212.9,7.27]
[1759189201825,7.82,212.93,212.9,11.4943]
[1759189202121,4.2234,212.96,212.91,7.27]
[1759189202122,3.37689066,212.92,212.91,7.27]
[1759189204930,1.70692082,212.97,212.91,4.2242]
[1759189205121,3.37602345,212.96,212.92,7.27]
[1759189205321,3.37602345,212.95,212.92,7.27]
[1759189205525,7.82,212.93,212.91,11.4942]
[1759189206026,7.82,212.93,212.92,7.27]
[1759189206228,11.1957457,212.93,212.92,7.27]
[1759189207229,3.3757457,212.93,212.89,7.27]
[1759189207527,7.82,212.91,212.89,7.27]
[1759189207727,1.70692082,212.94,212.87,13.95302197]
[1759189208023,3.37494349,212.93,212.88,4.2247]
[1759189208223,11.19494349,212.92,212.86,7.27]
[1759189208424,3.37494349,212.91,212.83,67.44242082]
[1759189208717,7.82,212.96,212.9,11.4943]
[1759189208923,3.37408129,212.95,212.91,7.27]
[1759189209229,7.82,212.93,212.91,7.27]
[1759189209424,3.37408129,212.92,212.91,7.27]
[1759189217837,3.37408129,212.92,212.9,11.4943]
[1759189218037,7.89,212.94,212.9,4.2243]
[1759189218237,11.25984384,212.93,212.91,7.27]
[1759189218538,3.36984384,212.92,212.91,7.27]
[1759189219534,7.89,212.97,212.91,11.4941]
[1759189219736,7.89,212.95,212.92,7.27]
[1759189219935,3.36988395,212.94,212.92,7.27]
[1759189220238,7.89,212.95,212.92,7.27]
[1759189220440,3.36990412,212.94,212.92,11.494]
[1759189220629,7.89,212.95,212.92,11.494]
[1759189220941,3.36990408,212.94,212.92,11.494]
[1759189221135,7.89,212.95,212.92,11.494]
[1759189221338,3.37000108,212.94,212.92,11.494]
[1759189221633,1.70692082,212.98,212.92,7.27]
[1759189221838,3.37003156,212.97,212.92,7.27]
[1759189222039,3.37003156,212.96,212.92,7.27]
[1759189222243,11.26003156,212.95,212.92,11.494]
[1759189222437,3.37003156,212.94,212.92,11.494]
[1759189222740,7.89,212.95,212.92,11.494]
[1759189222941,7.89,212.95,212.92,4.224]
[1759189222942,3.37033414,212.94,212.92,4.224]
[1759189223240,7.89,212.95,212.92,11.494]
[1759189223442,3.37047911,212.94,212.92,11.494]
[1759189223637,3.37047911,212.93,212.92,11.494]
[1759189228636,8.0,212.96,212.93,4.2237]
[1759189228941,3.37176407,212.95,212.94,7.3]
[1759189235348,8.0,212.99,212.95,4.2234]
[1759189235647,113.64,213.01,212.96,7.3]
[1759189235648,11.36305429,212.98,212.96,7.3]
[1759189235842,3.36305429,212.97,212.96,7.3]
[1759189239441,11.36305429,212.97,212.96,7.3]
[1759189239952,3.36305429,212.97,212.96,7.3]
[1759189241857,11.36305429,212.97,212.93,4.2238]
[1759189242157,11.36305429,212.96,212.94,7.3]
[1759189242460,8.0,212.96,212.94,7.3]
[1759189243955,3.36021061,212.95,212.94,7.3]
[1759189244952,115.34692082,213.01,212.94,11.5235]
[1759189245148,8.0,212.99,212.94,11.5235]
[1759189245353,3.36036995,212.98,212.93,7.3]
[1759189245650,3.36036995,212.97,212.93,7.3]
[1759189245861,123.34692082,213.01,212.93,7.3]
[1759189246053,3.36039996,213.0,212.93,7.3]
[1759189246248,3.36039996,212.99,212.93,7.3]
[1759189246447,3.36039996,212.98,212.93,7.3]
[1759189246653,3.36039996,212.97,212.93,7.3]
[1759189246855,123.34692082,213.01,212.93,7.3]
[1759189247153,3.36020355,213.0,212.93,7.3]
[1759189247354,3.36020355,212.99,212.93,7.3]
[1759189247556,3.36020355,212.98,212.95,4.2233]
[1759189247860,3.36020355,212.97,212.96,7.3]
[1759189249354,121.64,213.01,212.96,7.3]
[1759189249560,3.35929385,213.0,212.98,7.3]
[1759189249761,3.35929385,212.99,212.98,7.3]
[1759189251157,3.35929385,212.99,212.97,4.223]
[1759189251365,3.35929385,212.98,212.97,11.523]
[1759189251964,11.35929385,212.98,212.95,4.2234]
[1759189252165,8.0,212.98,212.95,11.5234]
[1759189252360,8.0,212.98,212.95,4.2234]
[1759189252562,8.0,212.98,212.95,11.5234]
[1759189253261,115.34692082,213.01,212.95,11.5234]
[1759189253461,8.0,212.99,212.95,11.5234]
[1759189253662,11.35902265,212.98,212.95,11.5234]
[1759189253861,8.0,212.98,212.95,11.5234]
[1759189254158,119.56932082,213.01,212.95,11.5234]
[1759189254463,3.35866921,213.0,212.95,11.5234]
[1759189254666,7.57,212.98,212.95,11.5234]
[1759189255164,4.2226,213.0,212.93,4.2237]
[1759189255365,7.57,212.96,212.94,7.56]
[1759189257162,4.2226,213.0,212.94,7.56]
[1759189257368,3.35879448,212.99,212.94,7.56]
[1759189257565,3.35879448,212.98,212.94,7.56]
[1759189257767,7.57,212.96,212.94,7.56]
[1759189259859,7.57,212.96,212.94,11.7836]
[1759189262165,7.57,213.02,212.91,7.56]
[1759189262368,7.57,213.0,212.91,7.56]
[1759189262560,3.35541425,212.99,212.91,7.56]
[1759189262760,3.35541425,212.98,212.91,7.56]
[1759189262968,3.35541425,212.97,212.91,7.56]
[1759189263261,3.35541425,212.96,212.91,7.56]
[1759189263466,7.57,213.0,212.91,7.56]
[1759189263665,7.57,212.98,212.95,11.7833]
[1759189263865,3.35545389,212.97,212.95,11.7833]
[1759189264071,3.35545389,212.96,212.95,11.7833]
[1759189270272,10.92545389,212.96,212.95,11.7833]
[1759189271569,10.92545389,212.96,212.93,4.2237]
[1759189271872,10.92545389,212.96,212.93,11.7837]
[1759189271873,3.35545389,212.95,212.93,11.7837]
[1759189272071,7.57,212.96,212.93,11.7837]
[1759189272271,3.35680828,212.95,212.93,11.7837]
[1759189272469,7.57,212.96,212.93,11.7837]
[1759189272670,3.35686154,212.95,212.93,11.7837]
[1759189272870,7.57,212.96,212.93,11.7837]
[1759189273071,3.3568603,212.95,212.93,11.7837]
[1759189273272,7.57,212.97,212.93,11.7837]
[1759189273472,10.92722411,212.96,212.94,4.2236]
[1759189273669,3.35722411,212.95,212.94,11.7836]
[1759189314701,7.51,212.99,212.97,11.553]
[1759189314901,3.35849641,212.98,212.97,11.553]
[1759189322603,3.35849641,212.98,212.95,4.2234]
[1759189322801,3.35849641,212.98,212.89,7.33]
[1759189322802,8.01,212.96,212.89,7.33]
[1759189323002,3.36154863,212.95,212.89,7.33]
[1759189323201,8.01,212.96,212.89,7.33]
[1759189323402,3.36154799,212.95,212.89,7.33]
[1759189323611,8.01,212.96,212.89,7.33]
[1759189323812,3.36168161,212.95,212.93,11.5537]
[1759189324010,1.70632717,212.98,212.93,11.5537]
[1759189324306,3.36168214,212.97,212.93,11.5537]
[1759189324508,11.37168214,212.96,212.93,11.5537]
[1759189324708,3.36168214,212.95,212.93,11.5537]
[1759189324910,8.01,212.96,212.93,11.5537]
[1759189325113,3.36168218,212.95,212.93,11.5537]
[1759189325409,1.70632717,212.98,212.93,11.5537]
[1759189325601,3.36168026,212.97,212.93,11.5537]
[1759189325805,8.01,212.95,212.93,11.5537]
[1759189327114,8.01,212.97,212.93,4.2237]
[1759189327313,8.01,212.95,212.93,4.2237]
[1759189327514,1.70632717,212.98,212.93,4.2237]
[1759189327708,3.36145816,212.97,212.93,4.2237]
[1759189328013,8.01,212.95,212.93,4.2237]
[1759189328706,1.70632717,212.97,212.94,4.2236]
[1759189328915,3.36145792,212.96,212.95,7.33]
[1759189330914,11.37145792,212.96,212.94,4.2236]
[1759189331107,3.36145792,212.95,212.94,11.5536]
[1759189344718,10.89145792,212.95,212.94,4.2236]
[1759189345124,3.36145792,212.95,212.94,11.5836]
[1759189349728,1.70632717,213.0,212.94,11.5836]
[1759189349928,3.36307784,212.99,212.95,7.36]
[1759189350133,7.53,212.97,212.95,7.36]
[1759189350333,3.36307784,212.96,212.95,7.36]
[1759189350726,10.89307784,212.96,212.94,11.5836]
[1759189351034,7.53,212.96,212.94,11.5836]
[1759189351430,3.36040472,212.95,212.94,7.36]
[1759189352636,3.36040472,212.95,212.89,7.36]
[1759189352927,3.36040472,212.94,212.88,1.18098474]
[1759189353130,3.36013754,212.93,212.89,4.2246]
[1759189353324,3.36013754,212.92,212.89,4.2246]
[1759189353633,1.70632717,212.94,212.89,4.2246]
[1759189353830,7.53,212.92,212.89,4.2246]
[1759189354138,7.53,212.92,212.89,11.5846]
[1759189354432,1.70632717,212.94,212.89,11.5846]
[1759189354732,7.53,212.92,212.89,11.5846]
[1759189355428,1.70632717,212.94,212.89,11.5846]
[1759189355633,7.53,212.92,212.89,11.5846]
[1759189356438,1.70632717,212.94,212.89,11.5846]
[1759189356635,7.53,212.92,212.89,11.5846]
[1759189357437,1.70632717,212.94,212.89,11.5846]
[1759189357633,3.3591564,212.93,212.89,11.5846]
[1759189357839,10.8891564,212.92,212.89,11.5846]
[1759189358038,1.70632717,212.94,212.89,11.5846]
[1759189358338,7.53,212.92,212.89,11.5846]
[1759189358642,1.70632717,212.94,212.89,11.5846]
[1759189358834,7.53,212.92,212.88,1.18098474]
[1759189359030,9.23632717,212.89,212.83,21.16558092]
[1759189359235,9.23632717,212.89,212.83,7.36]
[1759189360333,7.53,212.94,212.85,11.5853]
[1759189360533,7.53,212.94,212.77,120.88]
[1759189360534,7.53,212.86,212.77,120.88]
[1759189360741,1.70632717,212.84,212.77,135.03326667]
[1759189360942,9.23632717,212.84,212.77,135.03326667]
[1759189361336,7.53,212.83,212.79,4.2266]
[1759189362229,1.70632717,212.84,212.79,4.2266]
[1759189362631,7.53,212.83,212.81,4.2262]
[1759189363741,1.70632717,212.84,212.81,4.2262]
[1759189363936,7.53,212.83,212.81,4.2262]
[1759189364145,1.70632717,212.84,212.79,4.2266]
[1759189364342,1.70632717,212.84,212.78,7.36]
[1759189364642,9.23632717,212.84,212.78,7.36]
[1759189364841,7.53,212.83,212.8,4.2263]
[1759189365045,1.70632717,212.84,212.8,4.2263]
[1759189365241,7.53,212.83,212.8,4.2263]
[1759189365837,1.70632717,212.84,212.8,4.2263]
[1759189366339,1.70632717,212.81,212.7,1.70632717]
[1759189366538,3.34568118,212.84,212.75,13.99255727]
[1759189366734,70.92582211,212.9,212.69,67.48462717]
[1759189366735,1.70632717,212.78,212.74,4.2274]
[1759189366938,9.23632717,212.78,212.72,7.36]
[1759189367447,9.23632717,212.78,212.76,11.5871]
[1759189368145,9.23632717,212.78,212.76,4.2271]
[1759189369144,7.53,212.78,212.76,11.5871]
[1759189369440,1.70632717,212.79,212.78,4.2266]
[1759189369743,9.23632717,212.79,212.78,4.2266]
[1759189370437,7.53,212.83,212.8,4.2264]
[1759189370639,4.2241,212.92,212.78,7.36]
[1759189370840,1.70632717,212.84,212.78,7.36]
[1759189371744,9.23632717,212.84,212.83,4.2257]
[1759189376748,7.53,212.84,212.83,4.2257]
[1759189380546,7.99,212.84,212.76,7.76]
[1759189380744,7.57,212.81,212.76,7.76]
[1759189381544,7.57,212.81,212.77,4.227]
[1759189381946,7.57,212.81,212.76,7.76]
[1759189382145,7.57,212.81,212.74,7.76]
[1759189382548,2.67042055,212.82,212.76,4.2272]
[1759189382747,7.57,212.81,212.74,7.76]
[1759189383453,7.57,212.81,212.71,7.76]
[1759189383647,2.67042055,212.79,212.66,73.5473]
[1759189383846,7.57,212.77,212.66,87.80936939]
[1759189384352,7.57,212.75,212.66,87.80936939]
[1759189384542,2.67042055,212.76,212.71,4.2282]
[1759189384741,7.57,212.75,212.67,65.7853]
[1759189385247,2.67042055,212.73,212.67,65.7853]
[1759189385553,2.67042055,212.73,212.72,4.2279]
[1759189385753,10.24042055,212.73,212.72,4.2279]
[1759189386241,7.57,212.73,212.72,4.2279]
[1759189387950,7.57,212.73,212.7,4.2284]
[1759189388156,2.67042055,212.75,212.7,4.2284]
[1759189388353,7.57,212.74,212.7,4.2284]
[1759189388553,2.67042055,212.75,212.7,4.2284]
[1759189389049,7.57,212.74,212.7,4.2284]
[1759189389252,2.67042055,212.75,212.7,4.2284]
[1759189389454,7.57,212.74,212.71,4.228]
[1759189389754,2.67042055,212.75,212.71,4.228]
[1759189390150,7.57,212.74,212.71,4.228]
[1759189390854,2.67042055,212.75,212.71,4.228]
[1759189391353,7.57,212.74,212.71,4.228]
[1759189392052,2.67042055,212.75,212.71,4.228]
[1759189392558,7.57,212.74,212.71,4.228]
[1759189392752,2.67042055,212.75,212.71,4.228]
[1759189392952,7.57,212.74,212.71,4.228]
[1759189393154,2.67042055,212.75,212.71,4.228]
[1759189393356,7.57,212.74,212.71,4.228]
[1759189393754,2.67042055,212.75,212.71,4.228]
[1759189393956,7.57,212.74,212.71,4.228]
[1759189394259,7.57,212.77,212.71,4.228]
[1759189394858,7.57,212.77,212.72,4.2279]
[1759189395360,38.91,212.77,212.72,4.2279]
[1759189395660,57.21,212.77,212.72,4.2279]
[1759189396253,7.86,212.76,212.72,4.2279]
[1759189396560,49.64,212.77,212.72,4.2279]
[1759189396760,7.86,212.76,212.72,4.2279]
[1759189396957,49.64,212.77,212.72,4.2279]
[1759189397758,7.86,212.76,212.72,4.2279]
[1759189398260,49.64,212.77,212.72,4.2279]
[1759189398657,7.86,212.76,212.72,4.2279]
[1759189398956,49.64,212.77,212.72,4.2279]
[1759189399158,7.86,212.76,212.72,4.2279]
[1759189399356,49.64,212.77,212.72,4.2279]
[1759189399554,7.86,212.76,212.72,4.2279]
[1759189399750,49.64,212.77,212.72,4.2279]
[1759189400154,6.01953069,212.76,212.72,4.2279]
[1759189400556,7.86,212.75,212.72,4.2279]
[1759189400759,2.67042055,212.76,212.72,4.2279]
[1759189400966,7.86,212.75,212.72,4.2279]
[1759189401154,2.67042055,212.76,212.72,4.2279]
[1759189401360,7.86,212.75,212.72,4.2279]
[1759189401756,2.67042055,212.76,212.72,4.2279]
[1759189402062,7.86,212.75,212.72,4.2279]
[1759189402261,2.67042055,212.76,212.72,4.2279]
[1759189402462,7.86,212.75,212.72,4.2279]
[1759189402952,2.67042055,212.76,212.72,4.2279]
[1759189403158,7.86,212.75,212.72,4.2279]
[1759189403560,7.86,212.75,212.73,4.2277]
[1759189403765,2.67042055,212.76,212.73,4.2277]
[1759189403965,7.86,212.75,212.73,4.2277]
[1759189404167,2.67042055,212.76,212.73,4.2277]
[1759189404361,7.5,212.74,212.67,65.7853]
[1759189404665,10.17042055,212.72,212.64,73.1936]
[1759189404862,10.17042055,212.72,212.64,87.64453819]
[1759189405063,7.5,212.71,212.69,4.2285]
[1759189405559,2.67042055,212.72,212.69,4.2285]
[1759189405759,3.35379275,212.73,212.69,4.2285]
[1759189405956,3.35379275,212.73,212.7,4.2283]
[1759189406163,7.5,212.72,212.7,4.2283]
[1759189407763,7.5,212.73,212.7,4.2283]
[1759189408265,40.66,212.74,212.7,4.2283]
[1759189408866,7.5,212.73,212.7,4.2283]
[1759189409066,40.66,212.74,212.7,4.2283]
[1759189409362,7.5,212.73,212.68,4.2288]
[1759189410659,7.5,212.73,212.69,4.2285]
[1759189410864,7.5,212.73,212.65,7.4]
[1759189414174,7.5,212.73,212.67,4.2289]
[1759189416385,44.8877,212.74,212.68,4.2287]
[1759189416581,7.5,212.72,212.68,4.2287]
[1759189416780,44.8877,212.74,212.68,4.2287]
[1759189416978,7.5,212.72,212.68,4.2287]
[1759189417185,7.5,212.73,212.68,4.2287]
[1759189417882,44.8877,212.74,212.68,4.2287]
[1759189418286,7.5,212.73,212.68,4.2287]
[1759189418481,44.8877,212.74,212.68,4.2287]
[1759189418677,7.5,212.75,212.64,65.7929]
[1759189418985,23.98727016,212.74,212.67,7.4]
[1759189419181,7.5,212.73,212.67,7.4]
[1759189419583,4.2273,212.76,212.67,7.4]
[1759189419783,52.4483148,212.75,212.67,7.4]
[1759189419987,3.3483148,212.74,212.67,7.4]
[1759189420484,7.5,212.73,212.71,4.2281]
[1759189420684,7.5,212.79,212.69,7.4]
[1759189420884,1.60715788,212.83,212.69,7.4]
[1759189420885,7.5,212.77,212.69,7.4]
[1759189421089,3.34976109,212.76,212.69,7.4]
[1759189421286,323.34,212.8,212.71,7.4]
[1759189421488,3.35145885,212.79,212.71,7.4]
[1759189421688,3.35145885,212.78,212.71,7.4]
[1759189421889,3.35145885,212.79,212.71,7.4]
[1759189422088,3.35145885,212.78,212.71,7.4]
[1759189422288,3.35145885,212.79,212.71,7.4]
[1759189422484,3.35145885,212.78,212.71,7.4]
[1759189422686,3.35145885,212.79,212.71,7.4]
[1759189422890,3.35145885,212.78,212.71,7.4]
[1759189423091,3.35145885,212.77,212.71,7.4]
[1759189423285,3.35145885,212.79,212.71,7.4]
[1759189423480,3.35145885,212.78,212.71,7.4]
[1759189423681,3.35145885,212.77,212.75,11.6274]
[1759189423891,7.5,212.78,212.75,7.4]
[1759189424085,3.35145885,212.77,212.75,7.4]
[1759189424286,7.5,212.78,212.75,7.4]
[1759189424486,3.3572785,212.77,212.75,7.4]
[1759189424791,7.5,212.78,212.75,7.4]
[1759189424993,3.35727603,212.77,212.75,7.4]
[1759189425192,7.5,212.78,212.75,7.4]
[1759189425394,3.35731139,212.77,212.75,7.4]
[1759189425593,7.5,212.78,212.76,4.2271]
[1759189425893,3.35731139,212.77,212.76,4.2271]
[1759189426392,3.35735188,212.77,212.76,4.2271]
[1759189427291,3.35735188,212.77,212.75,7.4]
[1759189427497,3.35735188,212.76,212.75,7.4]
[1759189431297,3.35735188,212.76,212.74,11.6275]
[1759189431497,7.5,212.8,212.74,11.6275]
[1759189431700,7.5,212.78,212.75,7.4]
[1759189431896,10.86232007,212.77,212.75,7.4]
[1759189432097,3.36232007,212.76,212.75,7.4]
[1759189444807,7.59,212.78,212.76,4.2272]
[1759189445107,3.34886232,212.77,212.76,4.2272]
[1759189445603,10.93886232,212.77,212.76,4.2272]
[1759189449412,7.59,212.77,212.76,4.2272]
[1759189449709,10.93807454,212.77,212.76,4.2272]
[1759189454113,10.93807454,212.77,212.74,4.2275]
[1759189454410,7.59,212.8,212.74,4.2275]
[1759189454607,3.3486069,212.79,212.74,4.2275]
[1759189454913,7.6,212.77,212.74,11.5775]
[1759189455408,7.6,212.8,212.74,11.5775]
[1759189455711,3.34878392,212.79,212.74,11.5775]
[1759189455912,7.6,212.77,212.74,11.5775]
[1759189456214,4.2263,212.81,212.74,11.5775]
[1759189456418,3.34899,212.8,212.74,11.5775]
[1759189456610,7.6,212.78,212.74,11.5775]
[1759189456808,7.6,212.76,212.74,11.5775]
[1759189459815,4.2263,212.81,212.75,4.2273]
[1759189460118,3.35021129,212.8,212.75,11.5773]
[1759189460313,7.6,212.78,212.75,11.5773]
[1759189460517,3.35021129,212.77,212.75,11.5773]
[1759189460710,7.6,212.78,212.75,11.5773]
[1759189460912,3.35089903,212.77,212.75,11.5773]
[1759189461213,7.6,212.78,212.75,11.5773]
[1759189461409,3.35186931,212.77,212.75,11.5773]
[1759189461608,10.95186931,212.76,212.75,11.5773]
[1759189464319,10.95186931,212.76,212.75,4.2273]
[1759189464817,3.35186931,212.76,212.75,11.6573]
[1759189470818,11.10186931,212.76,212.75,11.6573]
[1759189471822,3.35186931,212.76,212.75,11.6573]
[1759189472225,11.10186931,212.76,212.73,11.6577]
[1759189472420,3.35186931,212.75,212.73,11.6577]
[1759189472618,3.35186931,212.74,212.73,11.6577]
[1759189474624,11.10186931,212.74,212.73,4.2277]
[1759189475827,3.35186931,212.74,212.73,4.2277]
[1759189476020,11.10186931,212.74,212.73,4.2277]
[1759189476927,11.10186931,212.74,212.72,7.43]
[1759189477123,3.35186931,212.73,212.72,7.43]
[1759189478025,3.35186931,212.73,212.72,11.6579]
[1759189478332,3.35186931,212.73,212.72,7.43]
[1759189478632,3.35186931,212.73,212.67,7.43]
[1759189478830,3.35186931,212.72,212.69,1.70986433]
[1759189479031,3.35186931,212.71,212.7,7.43]
[1759189479630,3.35186931,212.71,212.7,11.6584]
[1759189482135,7.75,212.74,212.71,7.43]
[1759189482332,3.35379846,212.73,212.71,7.43]
[1759189482527,3.35379846,212.72,212.71,7.43]
[1759189489447,3.35379846,212.72,212.68,11.6587]
[1759189489644,3.35379846,212.72,212.69,7.43]
[1759189489645,7.75,212.72,212.69,7.43]
[1759189490345,7.75,212.72,212.68,5.93856433]
[1759189490946,7.75,212.72,212.69,7.43]
[1759189491349,7.75,212.72,212.68,4.2287]
[1759189491542,7.75,212.72,212.69,7.43]
[1759189491952,7.75,212.72,212.68,4.2287]
[1759189492645,7.75,212.72,212.69,7.43]
[1759189493349,7.75,212.72,212.68,4.2287]
[1759189493749,7.75,212.72,212.69,7.43]
[1759189493948,7.75,212.74,212.69,7.43]
[1759189494143,7.75,212.74,212.68,4.2287]
[1759189494144,3.35155754,212.73,212.68,4.2287]
[1759189494348,3.35155754,212.72,212.68,4.2287]
[1759189494546,8.05,212.7,212.68,12.1087]
[1759189494745,8.05,212.7,212.68,4.2287]
[1759189495046,8.05,212.7,212.69,7.88]
[1759189495950,4.2277,212.74,212.69,7.88]
[1759189496152,8.05,212.72,212.69,7.88]
[1759189496352,3.35107182,212.71,212.69,7.88]
[1759189496553,8.05,212.73,212.69,7.88]
[1759189496853,11.40087095,212.72,212.68,4.2287]
[1759189497049,3.35087095,212.71,212.68,4.2287]
[1759189497254,8.05,212.72,212.69,7.88]
[1759189497451,3.35069671,212.71,212.69,7.88]
[1759189497652,4.2277,212.74,212.69,7.88]
[1759189497851,3.35075888,212.73,212.69,7.88]
[1759189498052,8.05,212.71,212.69,7.88]
[1759189500558,11.41463143,212.7,212.69,7.88]
[1759189500851,11.41463143,212.7,212.68,4.2287]
[1759189500852,5.07449576,212.7,212.65,7.88]
[1759189501054,8.05,212.68,212.65,7.88]
[1759189501249,8.05,212.67,212.65,7.88]
[1759189502155,3.36343138,212.66,212.65,7.88]
[1759189503257,8.05,212.67,212.65,7.88]
[1759189508052,8.05,212.7,212.62,7.88]
[1759189508252,3.35883114,212.69,212.62,7.88]
[1759189508457,3.35883114,212.68,212.62,7.88]
[1759189508660,3.35860924,212.69,212.63,7.88]
[1759189508956,3.35860924,212.72,212.63,10.55474165]
[1759189509158,3.35860924,212.71,212.64,7.88]
[1759189509456,8.05,212.73,212.64,7.88]
[1759189509652,3.35929238,212.72,212.67,4.2288]
[1759189509852,3.35929238,212.71,212.68,7.88]
[1759189510060,5.21744811,212.78,212.68,7.88]
[1759189510061,8.05,212.76,212.68,7.88]
[1759189510248,3.35959926,212.75,212.68,7.88]
[1759189510448,3.35959926,212.74,212.7,4.2283]
[1759189510648,3.35959926,212.73,212.71,7.88]
[1759189510852,8.05,212.76,212.71,7.88]
[1759189511056,11.40995337,212.75,212.71,7.88]
[1759189511251,3.35995337,212.74,212.7,4.2283]
[1759189511457,3.35995337,212.73,212.71,7.88]
[1759189511657,8.05,212.75,212.7,4.2283]
[1759189511861,3.3603596,212.74,212.71,7.88]
[1759189512060,3.3603596,212.73,212.7,4.2283]
[1759189512362,8.05,212.75,212.7,4.2283]
[1759189512562,3.36183414,212.74,212.71,7.88]
[1759189512861,3.36183414,212.73,212.71,7.88]
[1759189513156,4.2271,212.77,212.71,7.88]
[1759189513356,8.05,212.75,212.71,7.88]
[1759189513551,3.36229387,212.74,212.71,7.88]
[1759189513754,3.36229387,212.73,212.7,4.2283]
[1759189513957,8.05,212.75,212.71,7.88]
[1759189514165,3.36242559,212.74,212.7,4.2283]
[1759189514353,3.36242559,212.73,212.71,7.88]
[1759189514558,3.36242559,212.73,212.7,4.2283]
[1759189514559,8.05,212.75,212.7,4.2283]
[1759189514757,3.36293508,212.74,212.71,7.54]
[1759189514957,3.36293508,212.73,212.7,4.2283]
[1759189515159,8.05,212.75,212.71,7.54]
[1759189515355,3.36339275,212.74,212.71,7.54]
[1759189515560,8.05,212.75,212.7,4.2283]
[1759189515756,3.36339245,212.74,212.71,7.54]
[1759189515964,8.05,212.75,212.71,7.54]
[1759189516153,3.36339174,212.74,212.7,4.2283]
[1759189516354,8.05,212.75,212.71,7.54]
[1759189516556,3.36364403,212.74,212.7,4.2283]
[1759189516763,8.05,212.75,212.7,4.2283]
[1759189516966,3.36364865,212.74,212.7,4.2283]
[1759189517163,8.05,212.75,212.71,7.54]
[1759189517361,3.36390079,212.74,212.71,7.54]
[1759189517559,8.05,212.75,212.71,7.54]
[1759189517761,3.36390079,212.74,212.7,4.2283]
[1759189517962,8.05,212.75,212.71,7.54]
[1759189518162,3.36376599,212.74,212.71,7.54]
[1759189518467,7.53,212.77,212.71,7.54]
[1759189518767,10.8938867,212.76,212.71,7.54]
[1759189518968,10.8938867,212.75,212.7,4.2283]
[1759189519169,3.3638867,212.74,212.7,4.2283]
[1759189519471,7.53,212.75,212.71,4.2281]
[1759189519769,3.36401713,212.74,212.72,7.54]
[1759189519969,7.53,212.75,212.71,4.2281]
[1759189520165,3.3629751,212.74,212.71,4.2281]
[1759189520367,7.53,212.75,212.72,7.54]
[1759189520574,3.36302528,212.74,212.72,7.54]
[1759189520766,7.53,212.75,212.71,4.2281]
[1759189520978,3.36302168,212.74,212.71,4.2281]
[1759189521276,7.53,212.77,212.72,7.54]
[1759189521574,3.36288693,212.76,212.72,7.54]
[1759189521774,7.53,212.74,212.72,7.54]
[1759189522170,4.2271,212.77,212.71,4.2281]
[1759189522476,7.53,212.75,212.71,4.2281]
[1759189522676,3.36283973,212.74,212.71,4.2281]
[1759189522876,7.53,212.76,212.71,4.2281]
[1759189523077,3.36290359,212.75,212.71,4.2281]
[1759189523378,7.53,212.73,212.71,11.7681]
[1759189523678,116.33474165,212.8,212.66,68.46274165]
[1759189523679,7.53,212.78,212.72,11.7679]
[1759189523977,7.53,212.76,212.73,7.54]